[Event "Championnat d'Europe de Blitz"]
[Date "2024.12.09"]
[White "Kazakouski, Valery"]
[Black "Krallis, Christos"]
[WhiteElo "2567"]
[BlackElo "2383"]
[Round "11.14"]
[Result "1-0"]
[TimeControl "180+2"]

1. Nf3 {[%clk 00:03:03]} c5 {[%emt 00:00:07] [%clk 00:02:57]} 2. e4 {[%emt
00:00:02] [%clk 00:03:04]} Nc6 {[%emt 00:00:12] [%clk 00:02:47]} 3. Nc3 {[%emt
00:00:04] [%clk 00:03:02]} e6 {[%emt 00:00:06] [%clk 00:02:43]} 4. Bb5 {[%emt
00:00:05] [%clk 00:02:59]} Nge7 {[%emt 00:00:03] [%clk 00:02:42]} 5. O-O {[%emt
00:00:03] [%clk 00:02:58]} a6 {[%emt 00:00:01] [%clk 00:02:43]} 6. Be2 {[%emt
00:00:11] [%clk 00:02:49]} d5 {[%emt 00:00:07] [%clk 00:02:38]} 7. exd5 {[%clk
00:02:50]} Nxd5 {[%emt 00:00:03] [%clk 00:02:37]} 8. d3 {[%emt 00:00:46] [%clk
00:02:06]} Be7 {[%emt 00:00:02] [%clk 00:02:37]} 9. Re1 {[%emt 00:00:01] [%clk
00:02:07]} O-O {[%emt 00:00:01] [%clk 00:02:37]} 10. Bf1 {[%emt 00:00:02] [%clk
00:02:09]} Nxc3 {[%emt 00:00:12] [%clk 00:02:27]} 11. bxc3 {[%emt 00:00:01]
[%clk 00:02:10]} Bf6 {[%clk 00:02:28]} 12. Bd2 {[%emt 00:00:04] [%clk 00:02:08]}
b5 {[%emt 00:00:01] [%clk 00:02:28]} 13. Rb1 {[%emt 00:00:07] [%clk 00:02:03]}
Bd7 {[%emt 00:00:20] [%clk 00:02:10]} 14. g3 {[%emt 00:00:06] [%clk 00:01:59]}
Qa5 {[%emt 00:00:07] [%clk 00:02:06]} 15. c4 {[%emt 00:00:48] [%clk 00:01:12]}
b4 {[%emt 00:00:08] [%clk 00:02:00]} 16. Ng5 {[%emt 00:00:01] [%clk 00:01:13]}
Qxa2 {[%emt 00:00:19] [%clk 00:01:42]} 17. Qh5 {[%emt 00:00:23] [%clk 00:00:52]}
Bxg5 {[%emt 00:00:18] [%clk 00:01:27]} 18. Bxg5 {[%emt 00:00:01] [%clk
00:00:53]} Qxc2 {[%emt 00:00:36] [%clk 00:00:52]} 19. Rec1 {[%emt 00:00:04]
[%clk 00:00:52]} Qa2 {[%emt 00:00:07] [%clk 00:00:47]} 20. Be3 {[%emt 00:00:03]
[%clk 00:00:51]} Qa5 {[%emt 00:00:12] [%clk 00:00:37]} 21. Ra1 {[%emt 00:00:11]
[%clk 00:00:43]} Qc7 {[%emt 00:00:05] [%clk 00:00:33]} 22. Qxc5 {[%emt 00:00:04]
[%clk 00:00:41]} a5 {[%emt 00:00:07] [%clk 00:00:28]} 23. d4 {[%clk 00:00:42]}
Rfc8 {[%emt 00:00:02] [%clk 00:00:28]} 24. Bg2 {[%emt 00:00:01] [%clk 00:00:43]}
Qa7 {[%emt 00:00:14] [%clk 00:00:16]} 25. Qxa7 {[%emt 00:00:03] [%clk 00:00:42]}
Rxa7 {[%emt 00:00:04] [%clk 00:00:14]} 26. d5 {[%emt 00:00:01] [%clk 00:00:43]}
Ra6 {[%emt 00:00:06] [%clk 00:00:10]} 27. dxc6 {[%emt 00:00:02] [%clk 00:00:43]}
Bxc6 {[%emt 00:00:01] [%clk 00:00:11]} 28. Bxc6 {[%emt 00:00:08] [%clk
00:00:37]} Rcxc6 {[%emt 00:00:01] [%clk 00:00:12]} 29. Ra4 {[%emt 00:00:02]
[%clk 00:00:36]} f6 {[%emt 00:00:05] [%clk 00:00:10]} 30. f4 {[%emt 00:00:01]
[%clk 00:00:37]} Kf7 {[%emt 00:00:02] [%clk 00:00:10]} 31. Kf2 {[%clk 00:00:38]}
Ra8 {[%emt 00:00:04] [%clk 00:00:08]} 32. Ke2 {[%emt 00:00:01] [%clk 00:00:39]}
e5 {[%emt 00:00:02] [%clk 00:00:08]} 33. fxe5 {[%emt 00:00:01] [%clk 00:00:40]}
fxe5 {[%clk 00:00:10]} 34. Kd3 {[%emt 00:00:02] [%clk 00:00:41]} Ke6 {[%emt
00:00:02] [%clk 00:00:09]} 35. Rca1 {[%emt 00:00:03] [%clk 00:00:39]} Rd8+
{[%clk 00:00:11]} 36. Ke2 {[%emt 00:00:01] [%clk 00:00:41]} Rxc4 {[%emt
00:00:03] [%clk 00:00:10]} 37. Rxa5 {[%emt 00:00:01] [%clk 00:00:41]} Rc2+
{[%clk 00:00:11]} 38. Kf3 {[%emt 00:00:02] [%clk 00:00:41]} Rf8+ {[%emt
00:00:06] [%clk 00:00:07]} 39. Ke4 {[%emt 00:00:03] [%clk 00:00:41]} Rc4+ {[%clk
00:00:08]} 40. Kd3 {[%clk 00:00:42]} Rc3+ {[%clk 00:00:10]} 41. Ke4 {[%emt
00:00:27] [%clk 00:00:17]} Rc4+ {[%emt 00:00:01] [%clk 00:00:11]} 42. Kd3 {[%clk
00:00:19]} Rc3+ {[%clk 00:00:12]} 43. Kd2 {[%clk 00:00:20]} Rd8+ {[%emt
00:00:01] [%clk 00:00:13]} 44. Ke2 {[%clk 00:00:22]} Rc2+ {[%clk 00:00:14]} 45.
Kf3 {[%emt 00:00:04] [%clk 00:00:20]} Rf8+ {[%emt 00:00:01] [%clk 00:00:16]} 46.
Kg4 {[%emt 00:00:09] [%clk 00:00:12]} Rxh2 {[%emt 00:00:01] [%clk 00:00:16]} 47.
Ra6+ {[%emt 00:00:06] [%clk 00:00:09]} Kd5 {[%emt 00:00:05] [%clk 00:00:14]} 48.
Re1 {[%emt 00:00:03] [%clk 00:00:07]} g6 {[%emt 00:00:04] [%clk 00:00:12]} 49.
Ra5+ {[%emt 00:00:04] [%clk 00:00:05]} Kc4 {[%emt 00:00:03] [%clk 00:00:11]} 50.
Rxe5 {[%emt 00:00:02] [%clk 00:00:05]} b3 {[%emt 00:00:03] [%clk 00:00:10]} 51.
Bf4 {[%emt 00:00:03] [%clk 00:00:05]} b2 {[%emt 00:00:03] [%clk 00:00:08]} 52.
R5e4+ {[%emt 00:00:01] [%clk 00:00:06]} Kb3 {[%emt 00:00:02] [%clk 00:00:08]}
53. Re7 {[%emt 00:00:01] [%clk 00:00:06]} Ra8 {[%emt 00:00:03] [%clk 00:00:08]}
54. Rb7+ {[%emt 00:00:01] [%clk 00:00:07]} Ka2 {[%clk 00:00:09]} 55. Be5 {[%emt
00:00:03] [%clk 00:00:06]} Ra4+ {[%emt 00:00:03] [%clk 00:00:07]} 56. Kg5 {[%clk
00:00:08]} Ra5 {[%emt 00:00:01] [%clk 00:00:09]} 57. Kf6 {[%clk 00:00:09]} Rf2+
{[%emt 00:00:02]} 58. Kg7 {[%emt 00:00:02] [%clk 00:00:09]} Rxe5 {[%emt
00:00:04] [%clk 00:00:07]} 59. Rxe5 {[%clk 00:00:10]} b1=Q {[%emt 00:00:03]
[%clk 00:00:07]} 60. Ra5# {[%clk 00:00:12]} 1-0

[Site "Europe Echecs"]

[Event "Championnat d'Europe de Blitz"]
[Date "2024.12.09"]
[White "Dragnev, Valentin"]
[Black "Fridman, Daniel"]
[WhiteElo "2563"]
[BlackElo "2571"]
[Round "11.15"]
[Result "0-1"]
[TimeControl "180+2"]

1. e4 {[%clk 00:03:03]} e6 {[%emt 00:00:02] [%clk 00:03:03]} 2. d4 {[%clk
00:03:04]} d5 {[%clk 00:03:05]} 3. Bd3 {[%emt 00:00:05] [%clk 00:03:01]} dxe4
{[%emt 00:00:04] [%clk 00:03:03]} 4. Bxe4 {[%clk 00:03:02]} Nf6 {[%emt 00:00:02]
[%clk 00:03:04]} 5. Bf3 {[%clk 00:03:03]} c5 {[%clk 00:03:05]} 6. Ne2 {[%emt
00:00:02] [%clk 00:03:04]} Nc6 {[%emt 00:00:02] [%clk 00:03:05]} 7. Be3 {[%emt
00:00:02] [%clk 00:03:04]} cxd4 {[%emt 00:00:08] [%clk 00:03:00]} 8. Nxd4 {[%emt
00:00:01] [%clk 00:03:05]} Ne5 {[%clk 00:03:01]} 9. Nc3 {[%emt 00:00:06] [%clk
00:03:01]} Be7 {[%emt 00:00:09] [%clk 00:02:55]} 10. Qe2 {[%emt 00:00:03] [%clk
00:03:00]} O-O {[%emt 00:00:05] [%clk 00:02:52]} 11. O-O-O {[%emt 00:00:02]
[%clk 00:02:59]} Nxf3 {[%emt 00:00:23] [%clk 00:02:32]} 12. Nc6 {[%emt 00:01:08]
[%clk 00:01:52]} Qe8 {[%emt 00:00:03] [%clk 00:02:31]} 13. Nxe7+ {[%emt
00:00:03] [%clk 00:01:52]} Qxe7 {[%emt 00:00:01] [%clk 00:02:32]} 14. gxf3
{[%emt 00:00:11] [%clk 00:01:43]} b6 {[%emt 00:00:10] [%clk 00:02:24]} 15. Rhg1
{[%emt 00:00:04] [%clk 00:01:40]} Bb7 {[%emt 00:00:23] [%clk 00:02:04]} 16. Bh6
{[%emt 00:00:24] [%clk 00:01:18]} Ne8 {[%emt 00:00:02] [%clk 00:02:04]} 17. Rg3
{[%emt 00:00:27] [%clk 00:00:53]} f6 {[%emt 00:00:17] [%clk 00:01:49]} 18. h4
{[%emt 00:00:11] [%clk 00:00:44]} Rc8 {[%emt 00:00:29] [%clk 00:01:22]} 19. Kb1
{[%emt 00:00:13] [%clk 00:00:32]} Kh8 {[%emt 00:00:12] [%clk 00:01:13]} 20. Bc1
{[%emt 00:00:08] [%clk 00:00:26]} Nd6 {[%emt 00:00:04] [%clk 00:01:10]} 21. h5
{[%emt 00:00:04] [%clk 00:00:24]} Nf5 {[%emt 00:00:01] [%clk 00:01:11]} 22. Rg4
{[%emt 00:00:01] [%clk 00:00:25]} Rcd8 {[%emt 00:00:17] [%clk 00:00:56]} 23. h6
{[%emt 00:00:02] [%clk 00:00:26]} g6 {[%emt 00:00:03] [%clk 00:00:55]} 24. Be3
{[%emt 00:00:17] [%clk 00:00:10]} Rxd1+ {[%emt 00:00:10] [%clk 00:00:48]} 25.
Nxd1 {[%emt 00:00:03] [%clk 00:00:10]} g5 {[%emt 00:00:08] [%clk 00:00:41]} 26.
f4 {[%emt 00:00:04] [%clk 00:00:08]} Nxh6 {[%emt 00:00:03] [%clk 00:00:40]} 27.
Rg1 {[%clk 00:00:09]} g4 {[%emt 00:00:01] [%clk 00:00:41]} 28. Bd4 {[%emt
00:00:03] [%clk 00:00:08]} Nf5 {[%emt 00:00:04] [%clk 00:00:39]} 29. Bc3 {[%emt
00:00:01] [%clk 00:00:09]} Bf3 {[%clk 00:00:40]} 30. Qe1 {[%emt 00:00:01] [%clk
00:00:10]} h5 {[%emt 00:00:16] [%clk 00:00:25]} 31. Ne3 {[%clk 00:00:11]} Nxe3
{[%emt 00:00:02] [%clk 00:00:25]} 32. Qxe3 {[%emt 00:00:02] [%clk 00:00:12]} h4
{[%emt 00:00:07] [%clk 00:00:20]} 33. f5 {[%emt 00:00:01] [%clk 00:00:13]} Qg7
{[%emt 00:00:10] [%clk 00:00:12]} 34. fxe6 {[%emt 00:00:02] [%clk 00:00:13]} h3
{[%clk 00:00:13]} 35. Qf4 {[%emt 00:00:05] [%clk 00:00:10]} Qg6 {[%emt 00:00:04]
[%clk 00:00:11]} 36. e7 {[%emt 00:00:02] [%clk 00:00:10]} Re8 {[%clk 00:00:12]}
37. Bxf6+ {[%emt 00:00:03] [%clk 00:00:09]} Kh7 {[%clk 00:00:13]} 38. b3 {[%emt
00:00:04] [%clk 00:00:07]} Qe4 {[%emt 00:00:04] [%clk 00:00:11]} 39. Qg5 {[%emt
00:00:04] [%clk 00:00:05]} Qg6 {[%emt 00:00:01] [%clk 00:00:12]} 40. Qf4 {[%emt
00:00:01] [%clk 00:00:06]} Kg8 {[%emt 00:00:06] [%clk 00:00:08]} 41. Qe5 {[%emt
00:00:02] [%clk 00:00:05]} h2 {[%emt 00:00:02] [%clk 00:00:09]} 42. Qxh2 {[%emt
00:00:04] [%clk 00:00:03]} Qxf6 {[%clk 00:00:10]} 43. Qg3 {[%emt 00:00:01] [%clk
00:00:04]} Rxe7 {[%emt 00:00:01] [%clk 00:00:11]} 44. Qb8+ {[%emt 00:00:02]
[%clk 00:00:04]} Kg7 {[%emt 00:00:01] [%clk 00:00:11]} 45. Qc8 {[%emt 00:00:02]
[%clk 00:00:05]} Qe6 {[%emt 00:00:01] [%clk 00:00:12]} 46. Qc3+ {[%emt 00:00:02]
[%clk 00:00:05]} Qf6 {[%emt 00:00:01] [%clk 00:00:12]} 47. Qc4 {[%emt 00:00:03]
[%clk 00:00:05]} Rf7 {[%emt 00:00:01] [%clk 00:00:13]} 48. a4 {[%emt 00:00:01]
[%clk 00:00:06]} a5 {[%emt 00:00:01] [%clk 00:00:13]} 49. Qc8 {[%emt 00:00:03]
[%clk 00:00:05]} Qd4 {[%emt 00:00:04] [%clk 00:00:12]} 50. Re1 {[%emt 00:00:03]
[%clk 00:00:04]} Qd7 {[%emt 00:00:04] [%clk 00:00:10]} 51. Qc3+ {[%emt 00:00:02]
[%clk 00:00:04]} Kg6 {[%emt 00:00:01] [%clk 00:00:11]} 52. Qe3 {[%emt 00:00:03]
[%clk 00:00:03]} Qf5 {[%emt 00:00:01] [%clk 00:00:12]} 53. Qxb6+ {[%emt
00:00:01] [%clk 00:00:04]} Rf6 {[%clk 00:00:13]} 54. Qd4 {[%emt 00:00:01] [%clk
00:00:04]} Rc6 {[%emt 00:00:02] [%clk 00:00:14]} 55. Rc1 {[%emt 00:00:02] [%clk
00:00:04]} Be4 {[%clk 00:00:15]} 56. Kb2 {[%emt 00:00:01] [%clk 00:00:05]} Qf6
{[%emt 00:00:01] [%clk 00:00:16]} 57. c3 {[%emt 00:00:05] [%clk 00:00:03]} Qxd4
{[%emt 00:00:03] [%clk 00:00:14]} 58. cxd4 {[%emt 00:00:01] [%clk 00:00:04]}
Rxc1 {[%emt 00:00:01] [%clk 00:00:15]} 59. Kxc1 {[%emt 00:00:01] [%clk
00:00:05]} Kf6 {[%clk 00:00:16]} 60. Kd2 {[%emt 00:00:02] [%clk 00:00:05]} Ke6
{[%clk 00:00:18]} 61. Kc3 {[%emt 00:00:04] [%clk 00:00:03]} Kd5 {[%clk
00:00:19]} 62. b4 {[%emt 00:00:02] [%clk 00:00:03]} axb4+ {[%emt 00:00:01] [%clk
00:00:20]} 63. Kxb4 {[%emt 00:00:01]} Kxd4 {[%clk 00:00:20]} 0-1

[Site "Europe Echecs"]

[Event "Championnat d'Europe de Blitz"]
[Date "2024.12.09"]
[White "Larkin, Vladyslav"]
[Black "Ragger, Markus"]
[WhiteElo "2449"]
[BlackElo "2577"]
[Round "11.16"]
[Result "1-0"]
[TimeControl "180+2"]

1. e4 {[%clk 00:03:03]} e5 {[%clk 00:03:03]} 2. Nf3 {[%clk 00:03:04]} Nc6 {[%clk
00:03:05]} 3. Bb5 {[%emt 00:00:02] [%clk 00:03:05]} a6 {[%emt 00:00:01] [%clk
00:03:05]} 4. Ba4 {[%emt 00:00:01] [%clk 00:03:06]} Bc5 {[%clk 00:03:06]} 5. c3
{[%emt 00:00:01] [%clk 00:03:07]} Nge7 {[%emt 00:00:02] [%clk 00:03:06]} 6. O-O
{[%emt 00:00:05] [%clk 00:03:03]} Ng6 {[%emt 00:00:02] [%clk 00:03:07]} 7. d4
{[%emt 00:00:02] [%clk 00:03:03]} Ba7 {[%emt 00:00:01] [%clk 00:03:08]} 8. Be3
{[%emt 00:00:15] [%clk 00:02:50]} O-O {[%emt 00:00:03] [%clk 00:03:07]} 9. Nbd2
{[%emt 00:00:07] [%clk 00:02:45]} exd4 {[%emt 00:00:03] [%clk 00:03:06]} 10.
cxd4 {[%emt 00:00:03] [%clk 00:02:44]} d5 {[%emt 00:00:02] [%clk 00:03:06]} 11.
e5 {[%emt 00:00:09] [%clk 00:02:36]} Nce7 {[%emt 00:00:09] [%clk 00:02:59]} 12.
Rc1 {[%emt 00:00:10] [%clk 00:02:29]} c6 {[%emt 00:00:11] [%clk 00:02:50]} 13.
Re1 {[%emt 00:00:06] [%clk 00:02:24]} Nf5 {[%emt 00:00:08] [%clk 00:02:45]} 14.
Bc2 {[%emt 00:00:05] [%clk 00:02:22]} f6 {[%emt 00:00:13] [%clk 00:02:34]} 15.
Bxf5 {[%emt 00:00:20] [%clk 00:02:04]} Bxf5 {[%emt 00:00:01] [%clk 00:02:34]}
16. Qb3 {[%emt 00:00:01] [%clk 00:02:05]} Rf7 {[%emt 00:00:18] [%clk 00:02:18]}
17. exf6 {[%emt 00:00:07] [%clk 00:01:59]} gxf6 {[%emt 00:00:04] [%clk
00:02:17]} 18. Bh6 {[%emt 00:00:13] [%clk 00:01:48]} Qd6 {[%emt 00:00:04] [%clk
00:02:15]} 19. Re3 {[%emt 00:00:05] [%clk 00:01:44]} Kh8 {[%emt 00:00:13] [%clk
00:02:04]} 20. Rce1 {[%emt 00:00:02] [%clk 00:01:45]} Rg8 {[%emt 00:00:06] [%clk
00:02:00]} 21. h4 {[%emt 00:00:03] [%clk 00:01:44]} Bb8 {[%emt 00:00:11] [%clk
00:01:51]} 22. Re8 {[%emt 00:00:06] [%clk 00:01:40]} Qd7 {[%emt 00:00:21] [%clk
00:01:32]} 23. Rxg8+ {[%emt 00:00:09] [%clk 00:01:34]} Kxg8 {[%emt 00:00:01]
[%clk 00:01:33]} 24. h5 {[%emt 00:00:12] [%clk 00:01:23]} Nf8 {[%emt 00:00:29]
[%clk 00:01:06]} 25. Nh4 {[%emt 00:00:45] [%clk 00:00:40]} Bg4 {[%emt 00:00:02]
[%clk 00:01:06]} 26. Qe3 {[%emt 00:00:02] [%clk 00:00:40]} Bxh5 {[%emt 00:00:25]
[%clk 00:00:43]} 27. Bxf8 {[%emt 00:00:01] [%clk 00:00:41]} Rxf8 {[%emt
00:00:09] [%clk 00:00:36]} 28. Qh6 {[%emt 00:00:02] [%clk 00:00:41]} Be8 {[%emt
00:00:20] [%clk 00:00:18]} 29. Ndf3 {[%emt 00:00:16] [%clk 00:00:27]} Qg7 {[%emt
00:00:01] [%clk 00:00:18]} 30. Qxg7+ {[%emt 00:00:03] [%clk 00:00:26]} Kxg7
{[%emt 00:00:03] [%clk 00:00:18]} 31. Re7+ {[%emt 00:00:01] [%clk 00:00:28]} Kg8
{[%emt 00:00:07] [%clk 00:00:13]} 32. Rxb7 {[%emt 00:00:04] [%clk 00:00:25]} Bf4
{[%emt 00:00:04] [%clk 00:00:11]} 33. Nf5 {[%emt 00:00:03] [%clk 00:00:24]} Bg6
{[%emt 00:00:01] [%clk 00:00:12]} 34. Ne7+ {[%emt 00:00:02] [%clk 00:00:24]} Kh8
{[%emt 00:00:01] [%clk 00:00:13]} 35. g3 {[%clk 00:00:25]} Be4 {[%emt 00:00:06]
[%clk 00:00:09]} 36. Nh4 {[%emt 00:00:08] [%clk 00:00:18]} Rb8 {[%emt 00:00:07]
[%clk 00:00:05]} 37. Rxb8+ {[%emt 00:00:02] [%clk 00:00:18]} Bxb8 {[%emt
00:00:02] [%clk 00:00:06]} 38. Nxc6 {[%clk 00:00:19]} Bc7 {[%emt 00:00:02] [%clk
00:00:06]} 39. f3 {[%emt 00:00:03] [%clk 00:00:18]} Bb1 {[%emt 00:00:02] [%clk
00:00:06]} 40. Kf2 {[%emt 00:00:04] [%clk 00:00:16]} Bxa2 {[%emt 00:00:01] [%clk
00:00:07]} 41. Nf5 {[%emt 00:00:03] [%clk 00:00:15]} Bc4 {[%emt 00:00:02] [%clk
00:00:07]} 42. Nfe7 {[%emt 00:00:02] [%clk 00:00:15]} Kg7 {[%emt 00:00:03] [%clk
00:00:06]} 43. Nb4 {[%emt 00:00:02] [%clk 00:00:16]} Bd6 {[%emt 00:00:01] [%clk
00:00:06]} 44. Nf5+ {[%emt 00:00:03] [%clk 00:00:15]} Kf7 {[%emt 00:00:01] [%clk
00:00:07]} 45. Nxd6+ {[%emt 00:00:01] [%clk 00:00:17]} Ke6 {[%emt 00:00:05]
[%clk 00:00:08]} 46. Nxc4 {[%emt 00:00:01] [%clk 00:00:17]} dxc4 {[%clk
00:00:09]} 47. Ke3 {[%emt 00:00:01] [%clk 00:00:18]} a5 {[%clk 00:00:11]} 48.
Nc6 {[%emt 00:00:02] [%clk 00:00:18]} a4 {[%emt 00:00:01] [%clk 00:00:12]} 49.
Na5 {[%emt 00:00:01] [%clk 00:00:19]} Kd5 {[%emt 00:00:01] [%clk 00:00:13]} 50.
g4 {[%emt 00:00:03] [%clk 00:00:18]} h6 {[%emt 00:00:02] [%clk 00:00:13]} 51. f4
{[%clk 00:00:19]} c3 {[%emt 00:00:04] [%clk 00:00:11]} 52. bxc3 {[%clk
00:00:20]} a3 {[%clk 00:00:13]} 53. Kd3 {[%emt 00:00:01] [%clk 00:00:21]} a2
{[%emt 00:00:01] [%clk 00:00:14]} 54. Nb3 {[%clk 00:00:23]} 1-0

[Site "Europe Echecs"]

[Event "Championnat d'Europe de Blitz"]
[Date "2024.12.09"]
[White "Cvitan, Ognjen"]
[Black "Beerdsen, Thomas"]
[WhiteElo "2413"]
[BlackElo "2502"]
[Round "11.17"]
[Result "0-1"]
[TimeControl "180+2"]

1. d4 {[%emt 00:00:05] [%clk 00:02:58]} d5 {[%emt 00:00:02] [%clk 00:03:03]} 2.
c4 {[%clk 00:02:59]} Nc6 {[%emt 00:00:01] [%clk 00:03:04]} 3. Nc3 {[%emt
00:00:04] [%clk 00:02:58]} Nf6 {[%clk 00:03:04]} 4. Nf3 {[%emt 00:00:06] [%clk
00:02:54]} dxc4 {[%emt 00:00:02] [%clk 00:03:04]} 5. e3 {[%emt 00:00:06] [%clk
00:02:50]} Bg4 {[%emt 00:00:04] [%clk 00:03:02]} 6. Bxc4 {[%emt 00:00:02] [%clk
00:02:51]} e6 {[%emt 00:00:01] [%clk 00:03:02]} 7. h3 {[%emt 00:00:02] [%clk
00:02:51]} Bh5 {[%emt 00:00:01] [%clk 00:03:03]} 8. g4 {[%emt 00:00:29] [%clk
00:02:25]} Bg6 {[%emt 00:00:01] [%clk 00:03:03]} 9. Nh4 {[%clk 00:02:26]} Bb4
{[%emt 00:00:10] [%clk 00:02:55]} 10. Nxg6 {[%emt 00:00:02] [%clk 00:02:26]}
hxg6 {[%emt 00:00:01] [%clk 00:02:55]} 11. a3 {[%emt 00:00:19] [%clk 00:02:11]}
Ba5 {[%emt 00:00:04] [%clk 00:02:53]} 12. b4 {[%emt 00:00:06] [%clk 00:02:07]}
Bb6 {[%emt 00:00:01] [%clk 00:02:54]} 13. Bf1 {[%emt 00:00:14] [%clk 00:01:54]}
e5 {[%emt 00:00:22] [%clk 00:02:34]} 14. d5 {[%emt 00:00:03] [%clk 00:01:54]}
Ne7 {[%emt 00:00:02] [%clk 00:02:34]} 15. Bg2 {[%clk 00:01:55]} Nc8 {[%emt
00:00:09] [%clk 00:02:27]} 16. O-O {[%emt 00:00:11] [%clk 00:01:46]} Nd6 {[%emt
00:00:02] [%clk 00:02:26]} 17. Qe2 {[%emt 00:00:06] [%clk 00:01:41]} Qd7 {[%emt
00:00:05] [%clk 00:02:25]} 18. a4 {[%emt 00:00:09] [%clk 00:01:33]} a5 {[%emt
00:00:02] [%clk 00:02:26]} 19. Ba3 {[%emt 00:00:01] [%clk 00:01:33]} O-O {[%emt
00:00:05] [%clk 00:02:23]} 20. bxa5 {[%emt 00:00:07] [%clk 00:01:28]} Bxa5
{[%emt 00:00:03] [%clk 00:02:22]} 21. Nb5 {[%emt 00:00:02] [%clk 00:01:29]} Nxb5
{[%emt 00:00:15] [%clk 00:02:08]} 22. Qxb5 {[%emt 00:00:01] [%clk 00:01:30]}
Qxb5 {[%emt 00:00:04] [%clk 00:02:07]} 23. axb5 {[%clk 00:01:31]} Rfe8 {[%emt
00:00:04] [%clk 00:02:05]} 24. d6 {[%emt 00:00:23] [%clk 00:01:11]} cxd6 {[%clk
00:02:06]} 25. Bxd6 {[%clk 00:01:12]} e4 {[%emt 00:00:03] [%clk 00:02:05]} 26.
Bc5 {[%emt 00:00:03] [%clk 00:01:10]} Re5 {[%emt 00:00:12] [%clk 00:01:55]} 27.
Rfc1 {[%emt 00:00:19] [%clk 00:00:52]} Rc8 {[%emt 00:00:10] [%clk 00:01:48]} 28.
Bd4 {[%emt 00:00:04] [%clk 00:00:51]} Rxc1+ {[%emt 00:00:02] [%clk 00:01:48]}
29. Rxc1 {[%clk 00:00:52]} Rxb5 {[%emt 00:00:02] [%clk 00:01:48]} 30. Rc8+
{[%emt 00:00:24] [%clk 00:00:30]} Kh7 {[%emt 00:00:02] [%clk 00:01:49]} 31. Bxf6
{[%emt 00:00:02] [%clk 00:00:29]} gxf6 {[%clk 00:01:50]} 32. Bxe4 {[%emt
00:00:01] [%clk 00:00:30]} Rb2 {[%emt 00:00:05] [%clk 00:01:48]} 33. Rc2 {[%emt
00:00:09] [%clk 00:00:23]} Rb4 {[%emt 00:00:02] [%clk 00:01:48]} 34. Bd5 {[%emt
00:00:04] [%clk 00:00:20]} Kg7 {[%emt 00:00:02] [%clk 00:01:48]} 35. Ra2 {[%emt
00:00:05] [%clk 00:00:18]} b6 {[%emt 00:00:06] [%clk 00:01:43]} 36. Rc2 {[%clk
00:00:19]} b5 {[%emt 00:00:03] [%clk 00:01:43]} 37. Rc6 {[%emt 00:00:04] [%clk
00:00:17]} Rb1+ {[%emt 00:00:04] [%clk 00:01:41]} 38. Kg2 {[%clk 00:00:18]} Rd1
{[%clk 00:01:42]} 39. e4 {[%emt 00:00:02] [%clk 00:00:19]} f5 {[%emt 00:00:05]
[%clk 00:01:39]} 40. gxf5 {[%emt 00:00:02] [%clk 00:00:19]} gxf5 {[%clk
00:01:40]} 41. Ra6 {[%clk 00:00:20]} fxe4 {[%emt 00:00:09] [%clk 00:01:33]} 42.
Bxe4 {[%emt 00:00:04] [%clk 00:00:18]} Bc3 {[%emt 00:00:04] [%clk 00:01:32]} 43.
Rb6 {[%emt 00:00:02] [%clk 00:00:17]} b4 {[%emt 00:00:02] [%clk 00:01:33]} 44.
Rb7 {[%clk 00:00:18]} Rd2 {[%emt 00:00:02] [%clk 00:01:32]} 45. Kg3 {[%emt
00:00:10] [%clk 00:00:10]} Be5+ {[%emt 00:00:02] [%clk 00:01:32]} 46. Kf3 {[%emt
00:00:06] [%clk 00:00:07]} Bc3 {[%emt 00:00:01] [%clk 00:01:32]} 47. Kg3 {[%emt
00:00:02] [%clk 00:00:08]} Kf6 {[%emt 00:00:01] [%clk 00:01:32]} 48. Rb5 {[%emt
00:00:02] [%clk 00:00:08]} Rd4 {[%emt 00:00:11] [%clk 00:01:23]} 49. f3 {[%emt
00:00:02] [%clk 00:00:09]} Rd1 {[%emt 00:00:06] [%clk 00:01:18]} 50. h4 {[%emt
00:00:03] [%clk 00:00:08]} Rg1+ {[%emt 00:00:01] [%clk 00:01:19]} 51. Kf2 {[%emt
00:00:02] [%clk 00:00:08]} Rh1 {[%emt 00:00:03] [%clk 00:01:19]} 52. Kg3 {[%emt
00:00:02]} Be1+ {[%clk 00:01:19]} 53. Kg2 {[%emt 00:00:01] [%clk 00:00:09]} Rxh4
{[%emt 00:00:02] [%clk 00:01:19]} 54. Rb7 {[%emt 00:00:02] [%clk 00:00:10]} Ke6
{[%emt 00:00:07] [%clk 00:01:14]} 55. Bc2 {[%emt 00:00:03] [%clk 00:00:09]} f6
{[%emt 00:00:01] [%clk 00:01:14]} 56. Bb3+ {[%clk 00:00:11]} Kd6 {[%emt
00:00:01] [%clk 00:01:15]} 57. Rb5 {[%emt 00:00:02]} Bc3 {[%emt 00:00:02] [%clk
00:01:13]} 58. Kg3 {[%emt 00:00:02] [%clk 00:00:13]} Rh1 {[%emt 00:00:01] [%clk
00:01:14]} 59. f4 {[%emt 00:00:01] [%clk 00:00:15]} Rb1 {[%clk 00:01:14]} 60.
Bf7 {[%emt 00:00:01] [%clk 00:00:15]} Ke7 {[%emt 00:00:02] [%clk 00:01:15]} 61.
Bd5 {[%clk 00:00:15]} Rd1 {[%emt 00:00:03] [%clk 00:01:14]} 62. Kg4 {[%emt
00:00:01] [%clk 00:00:16]} Kd6 {[%emt 00:00:02] [%clk 00:01:14]} 63. Bb3 {[%emt
00:00:03]} Rd4 {[%clk 00:01:14]} 64. Kf5 {[%emt 00:00:01] [%clk 00:00:18]} Kc6
{[%emt 00:00:02] [%clk 00:01:14]} 65. Ba4 {[%emt 00:00:03] [%clk 00:00:17]} Kc7
{[%emt 00:00:26] [%clk 00:00:00]} 66. Rc5+ {[%emt 00:00:24] [%clk 00:00:13]} Kb7
{[%emt 00:00:04] [%clk 00:02:07]} 67. Rb5+ {[%emt 00:00:07] [%clk 00:00:08]} Ka6
{[%emt 00:00:03] [%clk 00:02:06]} 68. Rb8 {[%emt 00:00:03] [%clk 00:00:08]} Bd2
{[%emt 00:00:04] [%clk 00:02:03]} 69. Kxf6 {[%emt 00:00:03] [%clk 00:00:07]}
Bxf4 {[%emt 00:00:02] [%clk 00:02:04]} 70. Ra8+ {[%emt 00:00:02] [%clk
00:00:06]} Kb7 {[%emt 00:00:02] [%clk 00:02:05]} 71. Re8 {[%emt 00:00:02] [%clk
00:00:05]} Rd3 {[%emt 00:00:04] [%clk 00:02:03]} 72. Kf5 {[%emt 00:00:02] [%clk
00:00:06]} Bd6 {[%emt 00:00:04] [%clk 00:02:00]} 73. Ke4 {[%emt 00:00:03] [%clk
00:00:04]} Ra3 {[%emt 00:00:02] [%clk 00:02:01]} 74. Bd1 {[%emt 00:00:06] [%clk
00:00:00]} 0-1

[Site "Europe Echecs"]